Cogmind - Beta 14 @@@ ROGUE MODE // 2024.08.19 @ 17:04:40 Player: ForestDarkPsy Result: Self-destructed Performance ------------- Evolutions (4) 2000 Regions Visited (8) 1600 Robots Destroyed (44) 220 Value Destroyed (1623) 1623 Prototype IDs (28) 560 Alien Tech Used (0) 0 Bonus (440) 440 TOTAL SCORE: 6443 Bonus ------- Follower Combat Kills 140 Aligned with FarCom 300 Cogmind --------- Core Integrity 850/850 Matter 265/300 Energy 340/340 System Corruption 0% Temperature Cool (0) Movement Walking (127) Location -6/Lower Caves Parts ------- > --- POWER (2) -------- Improved Deuterium Engine Micro Nuclear Core > --- PROPULSION (4) --- Improved Carbon-fiber Leg Improved Titanium Leg Improved Titanium Leg Improved Titanium Leg > --- UTILITY (7) ------ High-capacity Storage Unit Trap Scanner Machine Analyzer 0b10 Alert Chip Force Booster Transmission Jammer Hardened Medium Armor Plating > --- WEAPON (2) ------- Greatsword > --- INVENTORY (20) --- Hybrid Deuterium Engine Improved Carbon-fiber Leg Improved Titanium Leg Light Armored Exoskeleton Compact Wheel Improved Heat Sink High-capacity Matter Pod (200) Microactuators Advanced ECM Suite Layered Medium Armor Plating Improved Shield Generator Component Analysis Suite Dynamic Insulation System Corruption Screen Plasma Cannon Coil Gun Coil Gun Precision Grenade Launcher Katana Peak State ------------ > --- POWER ------------ Improved Deuterium Engine Micro Nuclear Core > --- PROPULSION ------- Improved Carbon-fiber Leg Improved Titanium Leg Improved Titanium Leg Improved Titanium Leg > --- UTILITY ---------- High-capacity Storage Unit Trap Scanner Machine Analyzer 0b10 Alert Chip Force Booster Transmission Jammer Hardened Medium Armor Plating > --- WEAPON ----------- Greatsword > --- INVENTORY -------- Hybrid Deuterium Engine Improved Carbon-fiber Leg Improved Titanium Leg Light Armored Exoskeleton Improved Heat Sink High-capacity Matter Pod Microactuators Advanced ECM Suite Improved Medium Armor Plating Improved Shield Generator Component Analysis Suite Dynamic Insulation System Corruption Screen Plasma Cannon Coil Gun Coil Gun Precision Grenade Launcher Katana [Rating: 63] Favorites ----------- Power Improved Deuterium Engine Engine Improved Deuterium Engine Power Core Light Nuclear Core Propulsion Improved Carbon-fiber Leg Leg Improved Carbon-fiber Leg Utility High-capacity Storage Unit Device Force Booster Storage High-capacity Storage Unit Processor Machine Analyzer Protection Hardened Medium Armor Plating Weapon Improved Light Cannon Energy Gun Small Laser Ballistic Gun Assault Rifle Ballistic Cannon Improved Light Cannon Launcher Missile Launcher Slashing Weapon Greatsword Build | -11 -10 -10 -10 -9 -8 -7 -6 -6 ------- Run | Yrd Mat Min Exi Min Mat Fac Fac Low Slots Evolved 8 | . . . . . 4 2 2 . Power 1 | . . . . . . . 1 . Propulsion 2 | . . . . . 2 . . . Utility 5 | . . . . . 2 2 1 . Weapon . | . . . . . . . . . Parts Attached 78 | 7 21 3 . 2 12 30 3 . Power 10 | 1 2 . . . 1 5 1 . Engine 8 | 1 2 . . . . 5 . . Core 2 | . . . . . 1 . 1 . Reactor . | . . . . . . . . . Propulsion 26 | 2 9 2 . . 5 7 1 . Treads . | . . . . . . . . . Leg 26 | 2 9 2 . . 5 7 1 . Wheel . | . . . . . . . . . Hover . | . . . . . . . . . Flight . | . . . . . . . . . Utility 25 | 2 3 . . . 5 14 1 . Device 11 | 1 1 . . . 1 7 1 . Storage 4 | 1 1 . . . 2 . . . Processor 5 | . 1 . . . 1 3 . . Hackware . | . . . . . . . . . Protection 5 | . . . . . 1 4 . . Artifact . | . . . . . . . . . Weapon 17 | 2 7 1 . 2 1 4 . . Energy Gun 4 | 1 3 . . . . . . . Energy Cannon . | . . . . . . . . . Ballistic Gun 7 | 1 4 1 . 1 . . . . Ballistic Cannon 3 | . . . . 1 1 1 . . Launcher 1 | . . . . . . 1 . . Special Weapon . | . . . . . . . . . Impact Weapon . | . . . . . . . . . Slashing Weapon 2 | . . . . . . 2 . . Piercing Weapon . | . . . . . . . . . Special Melee Weapon . | . . . . . . . . . Unidentified Prototypes . | . . . . . . . . . Parts Lost 6 | . 1 2 . . . 3 . . Power 1 | . . . . . . 1 . . Propulsion 2 | . 1 1 . . . . . . Utility 1 | . . . . . . 1 . . Weapon 2 | . . 1 . . . 1 . . Highest Loss Streak 2 | . 1 2 . . . 1 . . To Critical Strikes . | . . . . . . . . . Average Slot Usage (%) 94 | . 99 100 100 85 88 94 93 . Engine 8 | . 14 14 14 14 1 6 6 . Leg 29 | . 27 28 28 28 33 30 26 . Device 10 | . 12 14 14 14 9 9 20 . Storage 9 | . 14 14 14 14 9 7 6 . Processor 13 | . . . . . 5 20 13 . Protection 4 | . . . . . 6 7 6 . Energy Gun 1 | . 8 . . . . . . . Ballistic Gun 5 | . 19 28 28 . . . . . Ballistic Cannon 4 | . . . . 14 15 4 . . Slashing Weapon 3 | . . . . . . 5 6 . Peak Build Rating 63 | 7 8 8 9 9 32 56 63 . Average Rating 37 | 4 7 7 8 8 23 52 62 . On Entrance 21 | . 7 8 8 9 9 32 54 63 Naked Turns . | . . . . . . . . . Heaviest Build 77 | 14 20 18 18 18 58 71 77 . Greatest Support 78 | 20 20 20 20 20 69 75 78 . Greatest Overweight (x) . | . . . . . . . . . Average Overweight (x) . | . . . . . . . . . Largest Inventory Capacity 20 | 8 10 10 10 10 20 20 20 . Average Capacity 16 | 6 9 10 10 10 18 20 20 . Most Carried 20 | 1 10 10 10 10 15 20 20 . Average Carried 15 | . 7 9 10 9 11 19 19 . Final Capacity 20 | 8 10 10 10 10 20 20 20 20 Final Carried 20 | 1 10 10 10 10 15 20 20 20 Class Distribution -------------------- 42% | Gladiator 28% | Mutant 11% | Scavenger-Skirmisher 8% | Scavenger-Mutant 5% | Skirmisher 4% | Assassin Dominant Class ---------------- Mutant | -10/Materials Mutant | -10/Mines Mutant | -10/Exiles Mutant | -9/Mines Scavenger-Mutant | -8/Materials Gladiator | -7/Factory Gladiator | -6/Factory Gladiator | -6/Lower Caves Resources | -11 -10 -10 -10 -9 -8 -7 -6 -6 ----------- Run | Yrd Mat Min Exi Min Mat Fac Fac Low Matter Collected 1684 | 285 375 104 . 20 182 718 . . Remotely . | . . . . . . . . . Salvage Created 1839 | 95 575 105 . . 71 993 . . Parts 103 | 9 35 5 . . 2 52 . . Haulers Intercepted 1 | . . . . . . 1 . . Recyclers Shooed 2 | 1 . 1 . . . . . . Parts Field Recycled . | . . . . . . . . . Retrieved Matter . | . . . . . . . . . Parts Self-Destructed . | . . . . . . . . . Prevented . | . . . . . . . . . Kills | -11 -10 -10 -10 -9 -8 -7 -6 -6 ------- Run | Yrd Mat Min Exi Min Mat Fac Fac Low Combat Hostiles Destroyed 33 | . 12 2 . . 2 17 . . Melee 11 | . . . . . . 11 . . Guns 14 | . 12 2 . . . . . . Cannons 8 | . . . . . 2 6 . . Classes Destroyed 10 | 2 4 . . . 2 2 . . Tunneler 2 | 2 . . . . . . . . Hauler 1 | . . . . . . 1 . . Recycler 4 | 1 1 . . . . 2 . . Mechanic 1 | . 1 . . . . . . . Watcher 3 | . 2 . . . . 1 . . Swarmer 3 | . 3 . . . . . . . Grunt 15 | . 9 2 . . . 4 . . Sentry 5 | . . . . . 1 4 . . Hunter 1 | . . . . . 1 . . . Programmer 9 | . . . . . . 9 . . Best Kill Streak 4 | 3 3 2 . . 1 4 . . Combat Bots Only 2 | . 2 2 . . 1 2 . . Max Kills in Single Turn 1 | 1 1 1 . . 1 1 . . Gunslinging . | . . . . . . . . . Exploded . | . . . . . . . . . Melee 1 | . . . . . . 1 . . Uniques/NPCs Destroyed . | . . . . . . . . . Combat | -11 -10 -10 -10 -9 -8 -7 -6 -6 -------- Run | Yrd Mat Min Exi Min Mat Fac Fac Low Hostile Shots Fired 273 | . 49 31 . . 8 185 . . Missed 75 | . 6 7 . . 2 60 . . Damage Taken 2390 | . 546 336 . . 122 1386 . . Core 402 | . 112 50 . . 28 212 . . Absorbed by Shields . | . . . . . . . . . Core Remaining (%) 74 | 100 . . . 35 94 69 . . Volleys Fired 108 | 5 52 14 . 2 9 26 . . Largest 2 | 2 2 2 . 1 2 2 . . Hottest 78 | 60 60 40 . 39 78 78 . . Shots Fired 212 | 10 104 28 . 2 16 52 . . Gun 142 | 10 104 28 . . . . . . Cannon 70 | . . . . 2 16 52 . . Launcher . | . . . . . . . . . Special . | . . . . . . . . . Kinetic 171 | 5 68 28 . 2 16 52 . . Thermal 41 | 5 36 . . . . . . . Explosive . | . . . . . . . . . Electromagnetic . | . . . . . . . . . Robot Hit Streak 11 | 6 8 11 . . 5 6 . . Robot Miss Streak 5 | 2 4 3 . . 1 5 . . Penetration Max . | . . . . . . . . . Secondary Targets 1 | . . 1 . . . . . . Max Gunslinging Chain 1 | . . 1 . . . . . . Shots Hit Robots 174 | 6 68 21 . . 11 68 . . Core Hits 71 | 4 32 5 . . 2 28 . . Critical Kills 1 | . . 1 . . . . . . Critical Parts Destroyed . | . . . . . . . . . Critical Strikes 13 | . . 1 . . 2 10 . . Destroy 1 | . . 1 . . . . . . Blast 5 | . . . . . 2 3 . . Sever 7 | . . . . . . 7 . . Melee Attacks 87 | . . . . . . 86 1 . Impact . | . . . . . . . . . Slashing 87 | . . . . . . 86 1 . Piercing . | . . . . . . . . . Sneak Attacks 4 | . . . . . . 4 . . Combat Hostiles . | . . . . . . . . . Follow-up Attacks . | . . . . . . . . . Damage Inflicted 4324 | 81 800 289 . . 224 2930 . . Guns 1151 | 81 800 270 . . . . . . Cannons 836 | . . . . . 224 612 . . Explosions . | . . . . . . . . . Melee 2318 | . . . . . . 2318 . . Ramming 19 | . . 19 . . . . . . Kinetic 1665 | 36 523 270 . . 224 612 . . Thermal 322 | 45 277 . . . . . . . Explosive . | . . . . . . . . . Electromagnetic . | . . . . . . . . . Impact . | . . . . . . . . . Slashing 2318 | . . . . . . 2318 . . Piercing . | . . . . . . . . . Highest Corruption 3 | . . . . . . 3 . . Average Corruption 1 | . . . . . . 1 . . Corruption Purged . | . . . . . . . . . Corruption Blocked 7 | . . . . . . 7 . . Effects 14 | . . . . . . 14 . . Message Errors 1 | . . . . . . 1 . . Matter Fused 3 | . . . . . . 3 . . Heat Flow Errors 2 | . . . . . . 2 . . Energy Discharges 2 | . . . . . . 2 . . Parts Fused 1 | . . . . . . 1 . . Data Loss (minor) 2 | . . . . . . 2 . . Data Loss (major) 3 | . . . . . . 3 . . Overload Shots . | . . . . . . . . . Overflow Damage 131 | . . . . . . 131 . . Projectiles . | . . . . . . . . . Explosions . | . . . . . . . . . Melee 131 | . . . . . . 131 . . Knockbacks 5 | . . . . . . 5 . . Impact . | . . . . . . . . . Kinetic 5 | . . . . . . 5 . . Secondary . | . . . . . . . . . Self-Inflicted Damage . | . . . . . . . . . Shots . | . . . . . . . . . Rammed . | . . . . . . . . . Targets Rammed 4 | . . 4 . . . . . . Kicked 4 | . . 4 . . . . . . Crushed . | . . . . . . . . . Highest Temperature 198 | . 72 26 . . 11 198 . . Average Temperature 27 | . 25 8 . . 7 35 . . Received Heat Transfer 726 | . 282 207 . . 36 201 . . Siege Activations . | . . . . . . . . . Robots Corrupted . | . . . . . . . . . Combat Hostiles . | . . . . . . . . . Parts Fried . | . . . . . . . . . Impact Corruptions . | . . . . . . . . . Robots Melted . | . . . . . . . . . Combat Hostiles . | . . . . . . . . . Parts Melted 3 | . 1 . . . 2 . . . Heat Transferred 725 | 100 625 . . . . . . . Parts Sabotaged . | . . . . . . . . . Parts Stolen . | . . . . . . . . . Parts Stripped . | . . . . . . . . . Power Chain Reactions . | . . . . . . . . . Alert | -11 -10 -10 -10 -9 -8 -7 -6 -6 ------- Run | Yrd Mat Min Exi Min Mat Fac Fac Low Peak Influence 308 | 15 308 121 . 16 254 289 137 . Initial 136 | . 9 91 . . . 46 136 . Average 86 | 5 130 110 . 12 119 75 136 . Maximum Alert Level 1 | . 1 . . . 1 1 . . Low Security (%) 87 | 100 73 100 . 100 97 87 100 . Level 1 12 | . 26 . . . 2 12 . . Level 2 . | . . . . . . . . . Level 3 . | . . . . . . . . . Level 4 . | . . . . . . . . . Level 5 . | . . . . . . . . . High Security . | . . . . . . . . . Max Security . | . . . . . . . . . Squads Dispatched 16 | . 1 . . . 3 11 1 . Investigation 4 | . 1 . . . 1 2 . . Extermination 10 | . . . . . . 9 1 . Reinforcement 1 | . . . . . 1 . . . Assault . | . . . . . . . . . Garrison 1 | . . . . . 1 . . . Intercept . | . . . . . . . . . Searches Triggered . | . . . . . . . . . Construction Impeded . | . . . . . . . . . Haulers Reinforced . | . . . . . . . . . Active Scanning Responses . | . . . . . . . . . Cargo Convoy Interrupts . | . . . . . . . . . Stealth | -11 -10 -10 -10 -9 -8 -7 -6 -6 --------- Run | Yrd Mat Min Exi Min Mat Fac Fac Low Distress Signals 1 | . . . . . 1 . . . Communications Jammed . | . . . . . . . . . Distress Signals . | . . . . . . . . . Times Spotted 63 | . 23 2 . . 9 29 . . Peak Tracking Total 5 | . 5 2 . . 3 4 1 . Tactical Retreats 9 | . 3 . . . . 6 . . Traps | -11 -10 -10 -10 -9 -8 -7 -6 -6 ------- Run | Yrd Mat Min Exi Min Mat Fac Fac Low Traps Triggered 5 | . 1 . . . . 4 . . Indirectly . | . . . . . . . . . Trap Hack Attempts . | . . . . . . . . . Triggered . | . . . . . . . . . Disarmed . | . . . . . . . . . Reprogrammed . | . . . . . . . . . Reused . | . . . . . . . . . Traps Extracted . | . . . . . . . . . Installed . | . . . . . . . . . Triggered . | . . . . . . . . . Machines | -11 -10 -10 -10 -9 -8 -7 -6 -6 ---------- Run | Yrd Mat Min Exi Min Mat Fac Fac Low Machines Disabled 1 | . . . . . 1 . . . Max in Single Turn 1 | . . . . . 1 . . . Machines Repaired . | . . . . . . . . . Machines Dismantled . | . . . . . . . . . Machines Sabotaged . | . . . . . . . . . Overloaded Fab Kills . | . . . . . . . . . Hacking | -11 -10 -10 -10 -9 -8 -7 -6 -6 --------- Run | Yrd Mat Min Exi Min Mat Fac Fac Low Machines Accessed 27 | . 4 . 2 1 2 17 1 . Terminals 16 | . 4 . . 1 1 9 1 . Fabricators 3 | . . . . . . 3 . . Repair Stations . | . . . . . . . . . Recycling Units 1 | . . . . . . 1 . . Scanalyzers 2 | . . . . . . 2 . . Garrison Access 3 | . . . . . 1 2 . . Total Hacks 66 | . 19 . 2 4 5 34 2 . Successful 26 | . 10 . 2 3 . 11 . . Failed 40 | . 9 . . 1 5 23 2 . Catastrophic 11 | . . . . . 2 8 1 . Database Lockouts . | . . . . . . . . . Manual 30 | . 7 . 1 3 3 14 2 . Terminals 49 | . 19 . . 4 3 21 2 . Fabricators 5 | . . . . . . 5 . . Repair Stations . | . . . . . . . . . Recycling Units 1 | . . . . . . 1 . . Scanalyzers 4 | . . . . . . 4 . . Garrison Access 5 | . . . . . 2 3 . . Terminal Hacks 18 | . 8 . 2 3 . 5 . . Record 2 | . . . 1 1 . . . . Robot Analysis 1 | . 1 . . . . . . . Prototype ID Bank 2 | . 2 . . . . . . . Level Access Points 1 | . . . . 1 . . . . Branch Access Points 2 | . 1 . . . . 1 . . Emergency Access Points 1 | . 1 . . . . . . . Terminal Index 1 | . 1 . . . . . . . Locate Traps 4 | . 1 . . . . 3 . . Zone Layout 3 | . 1 . . 1 . 1 . . Derelict Proto ID Bank 1 | . . . 1 . . . . . Fabricator Hacks 2 | . . . . . . 2 . . Network Status 2 | . . . . . . 2 . . Repair Station Hacks . | . . . . . . . . . Recycling Unit Hacks . | . . . . . . . . . Scanalyzer 3 | . . . . . . 3 . . Insert Component 2 | . . . . . . 2 . . Analyze 1 | . . . . . . 1 . . Garrison Access Hacks . | . . . . . . . . . Unauthorized Hacks 3 | . 2 . . . . 1 . . Terminals 3 | . 2 . . . . 1 . . Assimilate 1 | . . . . . . 1 . . Botnet 2 | . 2 . . . . . . . Fabricators . | . . . . . . . . . Repair Stations . | . . . . . . . . . Recycling Units . | . . . . . . . . . Scanalyzers . | . . . . . . . . . Garrison Access . | . . . . . . . . . Data Cores Recovered . | . . . . . . . . . Used . | . . . . . . . . . Hacking Detections 24 | . 4 . . 1 2 16 1 . Full Trace Events 2 | . . . . . 1 1 . . Feedback Events . | . . . . . . . . . Feedback Blocked . | . . . . . . . . . Robot Schematics Acquired . | . . . . . . . . . Robots Built . | . . . . . . . . . Authchips . | . . . . . . . . . Time . | . . . . . . . . . Total Robot Build Rating . | . . . . . . . . . Part Schematics Acquired 1 | . . . . . . 1 . . Parts Built . | . . . . . . . . . Authchips . | . . . . . . . . . Time . | . . . . . . . . . Total Part Build Rating . | . . . . . . . . . Parts Repaired . | . . . . . . . . . Time . | . . . . . . . . . Parts Recycled . | . . . . . . . . . Recycled Matter . | . . . . . . . . . Retrieved Matter . | . . . . . . . . . Retrieved Components . | . . . . . . . . . Parts Scanalyzed 1 | . . . . . . 1 . . Part Schematics Acquired 1 | . . . . . . 1 . . Parts Damaged . | . . . . . . . . . Bothacking | -11 -10 -10 -10 -9 -8 -7 -6 -6 ------------ Run | Yrd Mat Min Exi Min Mat Fac Fac Low Used RIF Installer . | . . . . . . . . . Robots Hacked . | . . . . . . . . . Non-combat . | . . . . . . . . . Combat . | . . . . . . . . . Robot Hacks Applied . | . . . . . . . . . Relay Couplers Released . | . . . . . . . . . Fabnet Peak Effective % . | . . . . . . . . . Robots Rewired . | . . . . . . . . . Allies Hacked . | . . . . . . . . . Hacks Repelled . | . . . . . . . . . Allies | -11 -10 -10 -10 -9 -8 -7 -6 -6 -------- Run | Yrd Mat Min Exi Min Mat Fac Fac Low Total Allies 3 | . . . . 3 . . . . Largest Group 3 | . . . . 3 3 3 . . Highest-Rated Group 40 | . . . . 40 40 39 . . Highest-Rated Ally 16 | . . . . 16 16 16 . . Total Orders . | . . . . . . . . . Ally Attacks 60 | . . . . . 46 14 . . Total Damage 702 | . . . . . 518 184 . . Kills 7 | . . . . . 7 . . . Allies Corrupted . | . . . . . . . . . Allies Melted . | . . . . . . . . . Intel | -11 -10 -10 -10 -9 -8 -7 -6 -6 ------- Run | Yrd Mat Min Exi Min Mat Fac Fac Low Robot Analysis Total 1 | . 1 . . . . . . . Derelict Logs Recovered 2 | . . 1 . 1 . . . . Drone Launches . | . . . . . . . . . Drone Recoveries . | . . . . . . . . . Exploration | -11 -10 -10 -10 -9 -8 -7 -6 -6 ------------- Run | Yrd Mat Min Exi Min Mat Fac Fac Low Turns Passed 7392 | 84 1144 314 289 472 418 4409 262 . Spaces Moved 4814 | 56 715 212 240 386 301 2735 169 . Core 13 | 13 . . . . . . . . Treads . | . . . . . . . . . Legs 4801 | 43 715 212 240 386 301 2735 169 . Wheels . | . . . . . . . . . Hover . | . . . . . . . . . Flight . | . . . . . . . . . Fastest Speed 50 | 50 120 120 120 120 120 120 127 . Average Speed 121 | 103 120 120 120 120 120 122 127 . Slowest Speed 127 | 120 120 120 120 120 120 127 127 . Overloaded Moves . | . . . . . . . . . Propulsion Burnouts . | . . . . . . . . . Robots Hopped . | . . . . . . . . . Cave-ins Triggered . | . . . . . . . . . Exploration Rate (%) 41 | 4 78 50 60 91 24 61 4 1 Regions Visited 8 Branch Regions 4 Pre-discovered Areas 2 | . . . 1 1 . . . . Known Exits Taken 3 | . 1 . . 1 1 . . . Unknown Exits Taken 5 | 1 . 1 1 . . 1 1 . Scrap Searched 1 | . . . . 1 . . . . Spaces Dug 35 | . . . . 1 . 33 1 . Terrain Destroyed 36 | . . . . 1 1 33 1 . Melee 34 | . . . . . . 33 1 . Projectile 2 | . . . . 1 1 . . . AOE . | . . . . . . . . . Terrain Rammed . | . . . . . . . . . Walls Destroyed . | . . . . . . . . . Machines Disabled . | . . . . . . . . . Actions | -11 -10 -10 -10 -9 -8 -7 -6 -6 --------- Run | Yrd Mat Min Exi Min Mat Fac Fac Low Total 6016 | 68 906 242 241 394 340 3609 216 . Wait 809 | . 87 9 . 1 6 668 38 . Move 4806 | 55 714 211 239 385 300 2734 168 . Hop . | . . . . . . . . . Pick Up 64 | 1 13 1 1 1 10 33 4 . Fast Attach 13 | 7 1 . . . 1 4 . . Attach 22 | . 2 2 . 1 5 9 3 . Detach 1 | . . . . . . 1 . . Swap 43 | . 18 1 . 1 6 17 . . Drop 59 | . 19 . 1 3 3 31 2 . Fire 108 | 5 52 14 . 2 9 26 . . Melee 87 | . . . . . . 86 1 . Ram . | . . . . . . . . . Kick 4 | . . 4 . . . . . . Crush . | . . . . . . . . . Escape Stasis . | . . . . . . . . . Rewire . | . . . . . . . . . Trap . | . . . . . . . . . Miscellaneous . | . . . . . . . . . Route ------- -11/Scrapyard -10/Materials (discovered 4 exits: *Mat x2 / *Min / *Sub) -10/Mines (discovered 2 exits: *Mat / *Exi) -10/Exiles (discovered 2 exits: *Min x2) -9/Mines (discovered 2 exits: *Mat x2) -8/Materials (discovered 2 exits: *Fac x2) -7/Factory (discovered 5 exits: *Fac x2 / Sto / Low x2) -6/Factory -6/Lower Caves History --------- Turn | Location | Event 4 | -11/Scrapyard | Discovered new exit (range 15) 85 | -11/Scrapyard | Entered Materials 305 | -10/Materials | Build established: Mutant 464 | -10/Materials | Discovered new exit (range 15) 465 | -10/Materials | Discovered new exit (range 7) 763 | -10/Materials | Discovered new exit (range 14) 808 | -10/Materials | Identified exit to Mines 1010 | -10/Materials | Identified exit to Materials 1088 | -10/Materials | Identified exit to Subcaves 1229 | -10/Materials | Entered Mines 1307 | -10/Mines | Core integrity fell below 50% 1357 | -10/Mines | Assembled infested the area 1405 | -10/Mines | Discovered exit to Materials (range 14) 1439 | -10/Mines | Learned location of 1 exit from Materials 1503 | -10/Mines | Met 8R-AWN 1538 | -10/Mines | Discovered new exit (range 5) 1543 | -10/Mines | Entered Exiles 1563 | -10/Exiles | Discovered new exit (range 15) 1596 | -10/Exiles | Welcomed by 8R-AWN 1617 | -10/Exiles | Met EX-HEX 1650 | -10/Exiles | Met EX-BIN 1665 | -10/Exiles | Aligned with FarCom system 1666 | -10/Exiles | Given EX-Vault access code 1693 | -10/Exiles | Opened EX-Vault 1702 | -10/Exiles | Found 0b10 Alert Chip 1727 | -10/Exiles | Warned to stay clear of 0b10 Research branches 1762 | -10/Exiles | Met EX-DEC 1768 | -10/Exiles | Learned location of Zion (-6) 1819 | -10/Exiles | Discovered new exit (range 14) 1832 | -10/Exiles | Left Exiles lab with 0b10 Alert Chip 1832 | -10/Exiles | Entered Mines 1868 | -9/Mines | Identified exit to Materials 1978 | -9/Mines | Assisted by bots powering up and referring to "LRC-V3" 2304 | -9/Mines | Entered Materials 2304 | -8/Materials | Accompanied by 3 allies 2304 | -8/Materials | Evolved 4 slots: Propulsion x2, Utility x2 2305 | -8/Materials | Identified exit to Factory 2681 | -8/Materials | Build established: Scavenger-Mutant 2683 | -8/Materials | Garrison activated, responded to threat 2704 | -8/Materials | Discovered exit to Factory (range 5) 2722 | -8/Materials | Entered Factory 2722 | -7/Factory | Accompanied by 3 allies 2722 | -7/Factory | Evolved 2 slots: Utility x2 3037 | -7/Factory | Build established: Scavenger-Skirmisher 3083 | -7/Factory | P-60 Hacker assimilated allied Trooper 2b 3693 | -7/Factory | Discovered new exit (range 4) 3854 | -7/Factory | Build established: Skirmisher 4245 | -7/Factory | Build established: Assassin 4586 | -7/Factory | Build established: Gladiator 6822 | -7/Factory | Identified exit to Storage 6822 | -7/Factory | Identified exit to Lower Caves 7062 | -7/Factory | Discovered new exit (range 7) 7131 | -7/Factory | Entered another Factory area 7131 | -6/Factory | Evolved 2 slots: Power x1, Utility x1 7298 | -6/Factory | Discovered new exit (range 5) 7393 | -6/Factory | Entered Lower Caves 7393 | -6/Lower Caves | Self-destructed Last Messages --------------- 07131_ Receiving FarCom transmissions... 07132_ Discarded Titanium Leg. 07183_ Acquired Coil Gun. 07189_ Acquired Com. Wheel. 07212_ >> Machine Analyzer network decryption results: 07212_ DSF Access x1 07212_ Terminal x1 07223_ Connecting with Terminal... 07223_ Current location identified: Factory 07268_ >> Machine Analyzer network decryption results: 07268_ Garrison Access x2 07276_ Connecting with Garrison Access... 07284_ >> Machine Analyzer network decryption results: 07284_ Terminal x1 07298_ EXIT=FOUND 07313_ Dropped Imp. Medium Armor Plating. 07313_ Acquired Lyr. Medium Armor Plating. 07381_ ALERT: Rogue bot located, Programmers report to Factory Zone 1I. LOCATION=UNKNOWN GOAL=ESCAPE Map ----- +----------------------------------------------------+ | ????????????????????????????????????????????????? | | ????????????????????????????????????????????????? | | ????????????????????????????????????????????????? | | ????????????????????????????????????????????????? | | ????????????????????????????????????????????????? | | ????????????????????????????????????????????????? | | ????????????????????????????????????????????????? | | ????????????????????????????????????????????????? | | ????????????????????????????????????????????????? | | ????????????????????????????????????????????????? | | ????????????????????????????????????????????????? | | ????????????????????????????????????????????????? | | ????????????????????????????????????????????????? | | ????????????????????????????????????????????????? | | ????????????????????????????????????????????????? | | ????????????????????????????????????????????????? | | ????????????????????????????????????????????????? | | ????????????????????????????????????????????????? | | ????????????????????????????????????????????????? | | ????????????????????????????????????????????????? | | ????????????????????????????????????????????????? | | ????????????????????????????????????????????????? | | ????????????????????????????????????????????????? | | ?????????????????????##########?????????????????? | | ??????????????????#### #?????????????????? | | ??????????????????# @ #?????????????????? | | ??????????????????# ## #?????????????????? | | ??????????????????# ###?????????????????????? | | ???????????????? #????????????????????????? | | ??????????????# # ##?????????????????????????? | | ??????????????#??# ????????????????????????????? | | ?????????????????##?????????????????????????????? | | ????????????????????????????????????????????????? | | ????????????????????????????????????????????????? | | ????????????????????????????????????????????????? | | ????????????????????????????????????????????????? | | ????????????????????????????????????????????????? | | ????????????????????????????????????????????????? | | ????????????????????????????????????????????????? | | ????????????????????????????????????????????????? | | ????????????????????????????????????????????????? | | ????????????????????????????????????????????????? | | ????????????????????????????????????????????????? | | ????????????????????????????????????????????????? | | ????????????????????????????????????????????????? | | ????????????????????????????????????????????????? | | ????????????????????????????????????????????????? | | ????????????????????????????????????????????????? | | ????????????????????????????????????????????????? | | ????????????????????????????????????????????????? | +----------------------------------------------------+ Best States ------------- Heat Dissipation 48 Energy Generation 26 Energy Capacity 800 Matter Stores 300 Matter Capacity 300 Sight Range 18 Terrain Scan Density 10 Jamming Range 12 EM Shielding 2 Corruption Block 8 Armor Coverage 225 Melee Speed Boost 20 Evasion (%) 55 Force Boost 20 Item Schematics ----------------- Imp. Carbon-fiber Leg | -7/Factory | Scanalyzed Robot Schematics ------------------ None Fabricated ------------ Nothing Alien Tech Used ----------------- None Achievements -------------- None Challenges ------------ None Game ------ Seed CoordinationSalvageBotcube Manual? 0 Play Time 02:11:49 Cumulative 186.8 hours Start 2024.08.16 @ 16:10:31 End 2024.08.19 @ 17:04:40 Sessions 7 Manual Loads 0 Difficulty Rogue Special Mode None Game No. 161 Rogue 161 Adventurer 0 Explorer 0 Win Type - Total 0 Types 0/0/0/0/0/0/0/0/0 Lore% 26 Gallery% 44 Achievement% 39 Wizard Run 0 Options --------- Layout 0 ASCII 1 Keyboard 0 Movement Mouse Keybinds 0 Fullscreen 1 Font 18/SmallcapsGlow Map View 76x50 Zoom Use 0% Tactical HUD 1 Map Filters NONE Filters NONE Steam 1 RUN: 112279bc-d573-498c-9312-005844d00db9